[Event "26th OIBM 2023"]
[Site "Gmund am Tegernsee"]
[Date "2023.11.03"]
[Round "7.14"]
[White "Weishaeutel, Moritz"]
[Black "Ciolek, Andreas"]
[Result "0-1"]
[ECO "D01"]
[WhiteElo "2403"]
[BlackElo "2215"]
[Annotator "RC"]
[PlyCount "82"]
[EventDate "2023.10.04"]
[EventType "swiss"]
[EventCountry "GER"]
[SourceTitle "playchess.com"]
[Source "ChessBase"]
[SourceQuality "1"]
[TimeControl "40/5400+30:1800+30"]

1. d4 {[%emt 0:00:02]} d5 {[%emt 0:01:09]} 2. Nc3 {[%emt 0:00:04]} Nf6 {[%emt 0:01:20]} 3. Bf4 {[%emt 0:00:04]} g6 {[%emt 0:02:32]} 4. Qd2 {[%emt 0:00:21]} Bg7 {[%emt 0:00:40]} 5. Bh6 {[%emt 0:00:05]} Bxh6 {[%emt 0:02:16]} 6. Qxh6 {[%emt 0:00:04]} c5 {[%emt 0:03:59]} 7. dxc5 {[%emt 0:00:15]} Nc6 {[%emt 0:01:39]} 8. Nf3 {[%emt 0:02:15]} Qa5 {[%emt 0:11:44]} 9. e3 {[%emt 0:00:55]} Bg4 {[%emt 0:10:15]} 10. Nd4 {[%emt 0:09:00]} Qxc5 {[%emt 0:07:45]} 11. Nxc6 {[%emt 0:05:47]} bxc6 {[%emt 0:00:23]} 12. Bd3 {[%emt 0:00:49]} Rb8 {[%emt 0:03:02]} 13. O-O {[%emt 0:01:30]} Qd6 {[%emt 0:01:46]} 14. e4 {[%emt 0:14:26]} Rxb2 {[%emt 0:12:39]} 15. exd5 {[%emt 0:01:16]} cxd5 {[%emt 0:01:20]} 16. Nb5 {[%emt 0:05:39]} Qb6 {[%emt 0:05:28]} 17. Rfe1 {[%emt 0:00:49]} Bd7 {[%emt 0:02:12]} 18. a4 {[%emt 0:12:21]} a5 {[%emt 0:04:54]} 19. h3 {[%emt 0:06:23]} Bf5 {[%emt 0:07:11]} 20. Bxf5 {[%emt 0:03:25]} gxf5 {[%emt 0:00:10]} 21. Re2 {[%emt 0:00:50]} Rb4 {[%emt 0:01:26]} 22. Re5 {[%emt 0:07:18]} Rg8 {[%emt 0:02:58]} 23. Rxf5 {[%emt 0:00:52]} Rg6 {[%emt 0:01:01]} 24. Qd2 {[%emt 0:00:26]} Kf8 {[%emt 0:01:48]} 25. c3 {[%emt 0:05:15]} Re4 {[%emt 0:01:43]} 26. Nd4 {[%emt 0:00:36]} e6 {[%emt 0:01:54]} 27. Rf3 {[%emt 0:00:10]} Nd7 {[%emt 0:01:01]} 28. Rd1 {[%emt 0:04:08]} Ne5 {[%emt 0:01:34]} 29. Rg3 {[%emt 0:02:03]} Nc4 {[%emt 0:02:19]} 30. Qd3 {[%emt 0:00:06]} Nb2 {[%emt 0:01:34]} 31. Qb1 {[%emt 0:00:12]} Rxg3 {[%emt 0:01:05]} 32. fxg3 {[%emt 0:00:03]} e5 {[%emt 0:00:41]} 33. Rd2 {[%emt 0:00:05]} Nxa4 {[%emt 0:01:24]} 34. Qxb6 Nxb6 {[%emt 0:00:01]} 35. Nc6 {[%emt 0:00:51]} a4 {[%emt 0:01:14]} 36. Nb4 {[%emt 0:00:20]} d4 {[%emt 0:00:27]} 37. Na2 {[%emt 0:01:29]} Nc4 {[%emt 0:00:36]} 38. Rd1 {[%emt 0:00:05]} Re2 {[%emt 0:00:49]} 39. Nc1 {[%emt 0:00:05]} Rc2 {[%emt 0:01:04]} 40. cxd4 {[%emt 0:00:08]} exd4 {[%emt 0:00:22]} 41. Nd3 {[%emt 0:30:33]} Ne3 {[%emt 0:04:16]} 0-1

[Event "26th OIBM 2023"]
[Site "Gmund am Tegernsee"]
[Date "2023.11.03"]
[Round "7.15"]
[White "Kargin, Arseny"]
[Black "Khrapko, Marharyta"]
[Result "1-0"]
[ECO "B45"]
[WhiteElo "2391"]
[BlackElo "2170"]
[Annotator "RC"]
[PlyCount "47"]
[EventDate "2023.10.04"]
[EventType "swiss"]
[EventCountry "GER"]
[SourceTitle "playchess.com"]
[Source "ChessBase"]
[SourceQuality "1"]
[TimeControl "40/5400+30:1800+30"]

1. e4 {[%emt 0:00:04]} c5 {[%emt 0:00:01]} 2. Nf3 {[%emt 0:00:09]} e6 {[%emt 0:00:01]} 3. d4 {[%emt 0:00:07]} cxd4 {[%emt 0:00:01]} 4. Nxd4 {[%emt 0:00:07]} Nf6 {[%emt 0:00:02]} 5. Nc3 {[%emt 0:00:09]} Nc6 {[%emt 0:00:02]} 6. Nxc6 {[%emt 0:00:44]} bxc6 {[%emt 0:00:02]} 7. e5 {[%emt 0:00:07]} Nd5 {[%emt 0:00:01]} 8. Ne4 {[%emt 0:00:07]} Qc7 {[%emt 0:00:02]} 9. f4 {[%emt 0:00:55]} Qb6 {[%emt 0:00:04]} 10. c4 {[%emt 0:00:39]} Ne3 {[%emt 0:00:07]} 11. Qd3 {[%emt 0:01:00]} Bb4+ {[%emt 0:00:02]} 12. Bd2 {[%emt 0:00:47]} Ba6 {[%emt 0:00:03]} 13. Bxb4 {[%emt 0:02:01]} Qxb4+ {[%emt 0:01:11]} 14. Kf2 {[%emt 0:01:12]} Qxb2+ {[%emt 0:21:04]} 15. Be2 {[%emt 0:04:37]} Nf5 {[%emt 0:04:32]} 16. Rab1 {[%emt 0:16:18]} Qd4+ {[%emt 0:03:01]} 17. Qxd4 {[%emt 0:01:47]} Nxd4 {[%emt 0:00:08]} 18. Bd3 {[%emt 0:04:45]} Ke7 {[%emt 0:15:51]} 19. g4 {[%emt 0:11:26]} c5 {[%emt 0:05:36]} 20. Nxc5 {[%emt 0:01:34]} Bxc4 {[%emt 0:03:56]} 21. Bxc4 {[%emt 0:01:08]} Rhc8 {[%emt 0:00:12]} 22. Rhd1 {[%emt 0:00:15]} Nc2 {[%emt 0:01:32]} 23. Rxd7+ {[%emt 0:00:51]} Kf8 {[%emt 0:02:38]} 24. Rbb7 {[%emt 0:00:32]} 1-0

[Event "26th OIBM 2023"]
[Site "Gmund am Tegernsee"]
[Date "2023.11.03"]
[Round "7.16"]
[White "Solomon, Kenny"]
[Black "Manish Anto Cristiano F"]
[Result "1/2-1/2"]
[ECO "C88"]
[WhiteElo "2300"]
[BlackElo "2368"]
[Annotator "RC"]
[PlyCount "95"]
[EventDate "2023.10.04"]
[EventType "swiss"]
[EventCountry "GER"]
[SourceTitle "playchess.com"]
[Source "ChessBase"]
[SourceQuality "1"]
[TimeControl "40/5400+30:1800+30"]

1. e4 {[%emt 0:00:02]} e5 {[%emt 0:00:55]} 2. Nf3 {[%emt 0:00:11]} Nc6 {[%emt 0:00:08]} 3. Bb5 {[%emt 0:00:07]} a6 {[%emt 0:00:09]} 4. Ba4 {[%emt 0:00:06]} Nf6 {[%emt 0:00:08]} 5. O-O {[%emt 0:01:26]} Be7 {[%emt 0:00:24]} 6. Re1 {[%emt 0:00:18]} b5 {[%emt 0:00:08]} 7. Bb3 {[%emt 0:00:04]} O-O {[%emt 0:00:15]} 8. a4 {[%emt 0:00:52]} b4 {[%emt 0:00:07]} 9. d4 {[%emt 0:00:17]} d6 {[%emt 0:01:01]} 10. dxe5 {[%emt 0:00:07]} Nxe5 {[%emt 0:02:30]} 11. Bf4 {[%emt 0:01:14]} Nxf3+ {[%emt 0:07:21]} 12. Qxf3 {[%emt 0:00:36]} Bg4 {[%emt 0:04:35]} 13. Qd3 {[%emt 0:09:42]} Be6 {[%emt 0:02:04]} 14. Nd2 {[%emt 0:04:33]} Nd7 {[%emt 0:01:31]} 15. Be3 {[%emt 0:12:03]} Bf6 {[%emt 0:06:11]} 16. Rab1 {[%emt 0:00:51]} Ne5 {[%emt 0:02:42]} 17. Qe2 {[%emt 0:00:43]} Bxb3 {[%emt 0:00:20]} 18. cxb3 {[%emt 0:08:06]} Re8 {[%emt 0:00:52]} 19. f4 {[%emt 0:12:22]} Ng6 {[%emt 0:04:44]} 20. Qd3 {[%emt 0:02:54]} Qc8 {[%emt 0:07:11]} 21. h3 {[%emt 0:01:36]} Qb7 {[%emt 0:06:55]} 22. g3 {[%emt 0:05:00]} Rad8 {[%emt 0:02:09]} 23. Bf2 {[%emt 0:00:35]} Nf8 {[%emt 0:03:03]} 24. Nc4 {[%emt 0:12:50]} Ne6 {[%emt 0:00:28]} 25. Na5 {[%emt 0:08:59]} Qa8 {[%emt 0:01:33]} 26. Qd5 {[%emt 0:00:06]} c5 {[%emt 0:06:58]} 27. Qxa8 {[%emt 0:01:47]} Rxa8 {[%emt 0:00:02]} 28. Nb7 {[%emt 0:02:09]} Nd4 {[%emt 0:02:23]} 29. Bxd4 {[%emt 0:02:08]} Bxd4+ {[%emt 0:00:18]} 30. Kg2 {[%emt 0:01:43]} Re6 {[%emt 0:01:08]} 31. f5 {[%emt 0:00:33]} Rh6 {[%emt 0:01:17]} 32. Na5 {[%emt 0:01:54]} Kf8 {[%emt 0:03:17]} 33. Nc4 {[%emt 0:03:30]} Rd8 {[%emt 0:04:56]} 34. Nb6 {[%emt 0:00:06]} g6 {[%emt 0:00:47]} 35. Nd5 {[%emt 0:00:29]} Re8 {[%emt 0:00:56]} 36. g4 {[%emt 0:03:11]} Rh4 {[%emt 0:01:08]} 37. Re2 {[%emt 0:03:22]} h5 {[%emt 0:00:37]} 38. fxg6 {[%emt 0:02:20]} hxg4 {[%emt 0:00:29]} 39. Kg3 {[%emt 0:00:34]} Rxh3+ {[%emt 0:00:37]} 40. Kxg4 {[%emt 0:00:01]} Rh6 {[%emt 0:00:40]} 41. gxf7 {[%emt 0:03:27]} Kxf7 {[%emt 0:05:06]} 42. Rf1+ {[%emt 0:01:34]} Kg7 {[%emt 0:01:06]} 43. Rf5 {[%emt 0:00:52]} Rh1 {[%emt 0:11:56]} 44. Nf4 {[%emt 0:13:02]} Kh6 {[%emt 0:05:02]} 45. Rf7 {[%emt 0:03:46]} Re5 {[%emt 0:08:11]} 46. Rf6+ {[%emt 0:01:01]} Kh7 {[%emt 0:03:25]} 47. Rxd6 {[%emt 0:01:30]} Rg1+ {[%emt 0:00:08]} 48. Ng2 {[%emt 0:02:34]} 1/2-1/2

[Event "26th OIBM 2023"]
[Site "Gmund am Tegernsee"]
[Date "2023.11.03"]
[Round "7.17"]
[White "Raupp, Thomas"]
[Black "Zawadzka, Jolanta"]
[Result "0-1"]
[ECO "E73"]
[WhiteElo "2239"]
[BlackElo "2342"]
[Annotator "RC"]
[PlyCount "52"]
[EventDate "2023.10.04"]
[EventType "swiss"]
[EventCountry "GER"]
[SourceTitle "playchess.com"]
[Source "ChessBase"]
[SourceQuality "1"]
[TimeControl "40/5400+30:1800+30"]

1. d4 {[%emt 0:00:04]} Nf6 {[%emt 0:03:04]} 2. c4 {[%emt 0:00:04]} g6 {[%emt 0:00:05]} 3. Nc3 {[%emt 0:00:04]} Bg7 {[%emt 0:00:04]} 4. e4 {[%emt 0:00:11]} d6 {[%emt 0:00:04]} 5. Be2 {[%emt 0:00:09]} O-O {[%emt 0:00:16]} 6. Be3 {[%emt 0:00:06]} e5 {[%emt 0:06:37]} 7. d5 {[%emt 0:01:16]} a5 {[%emt 0:01:20]} 8. g4 {[%emt 0:00:51]} Na6 {[%emt 0:12:58]} 9. g5 {[%emt 0:16:02]} Ne8 {[%emt 0:01:07]} 10. h4 {[%emt 0:00:06]} f5 {[%emt 0:03:19]} 11. gxf6 {[%emt 0:03:01]} Nxf6 {[%emt 0:03:09]} 12. h5 {[%emt 0:00:13]} Nc5 {[%emt 0:03:00]} 13. hxg6 {[%emt 0:00:06]} Ncxe4 {[%emt 0:14:13]} 14. Nxe4 {[%emt 0:28:53]} Nxe4 {[%emt 0:00:06]} 15. gxh7+ {[%emt 0:12:14]} Kh8 {[%emt 0:00:07]} 16. Bg4 {[%emt 0:00:06]} Qf6 {[%emt 0:06:59]} 17. Nh3 {[%emt 0:01:54]} Bh6 {[%emt 0:04:59]} 18. Bxh6 {[%emt 0:13:08]} Qxh6 {[%emt 0:00:21]} 19. Bxc8 {[%emt 0:00:24]} Raxc8 {[%emt 0:00:19]} 20. Qe2 {[%emt 0:02:20]} Ng5 {[%emt 0:09:12]} 21. Qe3 {[%emt 0:02:32]} Nf3+ {[%emt 0:00:07]} 22. Kf1 {[%emt 0:08:37]} Qh4 {[%emt 0:02:36]} 23. Rc1 {[%emt 0:01:44]} Rf5 {[%emt 0:01:23]} 24. Rc3 {[%emt 0:01:57]} Rcf8 {[%emt 0:00:47]} 25. b3 {[%emt 0:01:45]} Rh5 {[%emt 0:08:54]} 26. Qe2 {[%emt 0:01:20]} Qg4 {[%emt 0:00:34]} 0-1

[Event "26th OIBM 2023"]
[Site "Gmund am Tegernsee"]
[Date "2023.11.03"]
[Round "7.18"]
[White "Imnadze, Nato"]
[Black "Dolzhykova, Kateryna"]
[Result "1-0"]
[ECO "D02"]
[WhiteElo "2207"]
[BlackElo "2336"]
[Annotator "RC"]
[PlyCount "75"]
[EventDate "2023.10.04"]
[EventType "swiss"]
[EventCountry "GER"]
[SourceTitle "playchess.com"]
[Source "ChessBase"]
[SourceQuality "1"]
[TimeControl "40/5400+30:1800+30"]

1. d4 {[%emt 0:00:03]} c6 {[%emt 0:01:19]} 2. Nf3 {[%emt 0:04:03]} d5 {[%emt 0:01:10]} 3. Bf4 {[%emt 0:03:39]} Nf6 {[%emt 0:03:31]} 4. c3 {[%emt 0:00:35]} h6 {[%emt 0:02:02]} 5. e3 {[%emt 0:02:14]} g5 {[%emt 0:01:58]} 6. Be5 {[%emt 0:02:41]} Nbd7 {[%emt 0:00:26]} 7. Bd3 {[%emt 0:00:54]} g4 {[%emt 0:08:03]} 8. Bxf6 {[%emt 0:01:44]} Nxf6 {[%emt 0:00:25]} 9. Ne5 {[%emt 0:01:58]} Rg8 {[%emt 0:05:08]} 10. Nd2 {[%emt 0:02:17]} Qb6 {[%emt 0:06:15]} 11. O-O {[%emt 0:11:58]} Nd7 {[%emt 0:05:26]} 12. f4 {[%emt 0:10:23]} h5 {[%emt 0:05:15]} 13. Qc2 {[%emt 0:09:23]} Bh6 {[%emt 0:01:31]} 14. Kh1 {[%emt 0:08:43]} Nf8 {[%emt 0:07:38]} 15. c4 {[%emt 0:03:28]} f6 {[%emt 0:04:45]} 16. Ng6 {[%emt 0:00:04]} Be6 {[%emt 0:02:15]} 17. Nxf8 {[%emt 0:02:46]} Kxf8 {[%emt 0:00:16]} 18. Nb3 {[%emt 0:01:51]} Kf7 {[%emt 0:17:41]} 19. Nc5 {[%emt 0:00:34]} Bc8 {[%emt 0:00:08]} 20. cxd5 {[%emt 0:09:11]} cxd5 {[%emt 0:00:08]} 21. e4 {[%emt 0:00:33]} g3 {[%emt 0:00:29]} 22. e5 {[%emt 0:04:00]} gxh2 {[%emt 0:01:12]} 23. Rae1 {[%emt 0:00:37]} Bg4 {[%emt 0:01:35]} 24. Bh7 {[%emt 0:02:04]} f5 {[%emt 0:05:33]} 25. Bxf5 {[%emt 0:01:12]} Kg7 {[%emt 0:00:33]} 26. Bxg4 {[%emt 0:05:54]} hxg4 {[%emt 0:00:03]} 27. e6 {[%emt 0:00:20]} Rac8 {[%emt 0:02:11]} 28. Qf5 {[%emt 0:01:27]} Qxb2 {[%emt 0:00:56]} 29. Qe5+ {[%emt 0:05:35]} Kh7 {[%emt 0:01:30]} 30. Qxd5 {[%emt 0:00:03]} Rcd8 {[%emt 0:02:33]} 31. Qe4+ {[%emt 0:00:24]} Kh8 {[%emt 0:00:24]} 32. Nd7 {[%emt 0:00:02]} Qxa2 {[%emt 0:00:54]} 33. Qe5+ {[%emt 0:00:24]} Rg7 {[%emt 0:00:48]} 34. Qf5 {[%emt 0:01:03]} Kg8 {[%emt 0:02:47]} 35. Rc1 {[%emt 0:01:41]} Qe2 {[%emt 0:03:04]} 36. Ne5 {[%emt 0:00:11]} Rh7 {[%emt 0:01:51]} 37. Qg6+ {[%emt 0:00:28]} Bg7 {[%emt 0:00:11]} 38. Qf7+ {[%emt 0:00:04]} 1-0

[Event "26th OIBM 2023"]
[Site "Gmund am Tegernsee"]
[Date "2023.11.03"]
[Round "7.19"]
[White "Nguyen, Alex Dac-Vuong"]
[Black "Basener, Winfried"]
[Result "1-0"]
[ECO "C06"]
[WhiteElo "2333"]
[BlackElo "1941"]
[Annotator "RC"]
[PlyCount "107"]
[EventDate "2023.10.04"]
[EventType "swiss"]
[EventCountry "GER"]
[SourceTitle "playchess.com"]
[Source "ChessBase"]
[SourceQuality "1"]
[TimeControl "40/5400+30:1800+30"]

1. e4 {[%emt 0:00:03]} e6 {[%emt 0:00:09]} 2. d4 {[%emt 0:00:05]} d5 {[%emt 0:00:05]} 3. Nd2 {[%emt 0:00:04]} Nf6 {[%emt 0:00:07]} 4. e5 {[%emt 0:00:04]} Nfd7 {[%emt 0:00:09]} 5. c3 {[%emt 0:00:08]} c5 {[%emt 0:00:05]} 6. Bd3 {[%emt 0:00:05]} Nc6 {[%emt 0:00:51]} 7. Ne2 {[%emt 0:00:07]} cxd4 {[%emt 0:00:14]} 8. cxd4 {[%emt 0:00:06]} f6 {[%emt 0:00:11]} 9. exf6 {[%emt 0:00:05]} Nxf6 {[%emt 0:00:09]} 10. O-O {[%emt 0:00:15]} Bd6 {[%emt 0:00:08]} 11. Nf3 {[%emt 0:00:07]} Qc7 {[%emt 0:00:15]} 12. Bg5 {[%emt 0:00:09]} O-O {[%emt 0:00:07]} 13. Bh4 {[%emt 0:00:06]} Nh5 {[%emt 0:20:05]} 14. Rc1 {[%emt 0:00:07]} Rxf3 {[%emt 0:01:47]} 15. gxf3 {[%emt 0:00:04]} Bxh2+ {[%emt 0:00:22]} 16. Kg2 {[%emt 0:00:09]} Bd6 {[%emt 0:02:28]} 17. Rh1 {[%emt 0:10:17]} g6 {[%emt 0:00:18]} 18. Bg3 {[%emt 0:06:26]} Nxg3 {[%emt 0:09:17]} 19. fxg3 {[%emt 0:00:27]} Qf7 {[%emt 0:15:14]} 20. f4 {[%emt 0:00:29]} Qf6 {[%emt 0:03:50]} 21. Qd2 {[%emt 0:06:55]} Bd7 {[%emt 0:09:02]} 22. Bb5 {[%emt 0:03:46]} Rf8 {[%emt 0:05:46]} 23. Ng1 {[%emt 0:04:58]} Nb8 {[%emt 0:09:54]} 24. Bxd7 {[%emt 0:01:21]} Nxd7 {[%emt 0:03:15]} 25. Nf3 {[%emt 0:00:08]} Re8 {[%emt 0:10:33]} 26. Ng5 {[%emt 0:01:04]} Nf8 {[%emt 0:00:26]} 27. Rce1 {[%emt 0:05:23]} Rc8 {[%emt 0:00:18]} 28. Re3 {[%emt 0:03:07]} Qf5 {[%emt 0:01:19]} 29. Rc1 {[%emt 0:00:56]} Rxc1 {[%emt 0:00:11]} 30. Qxc1 {[%emt 0:00:01]} h6 {[%emt 0:00:13]} 31. Nf3 {[%emt 0:03:21]} h5 {[%emt 0:02:23]} 32. Re1 {[%emt 0:09:16]} g5 {[%emt 0:01:29]} 33. Nxg5 {[%emt 0:00:45]} h4 {[%emt 0:01:02]} 34. Nf3 {[%emt 0:13:04]} hxg3 {[%emt 0:00:28]} 35. Ne5 {[%emt 0:00:12]} Ng6 {[%emt 0:03:51]} 36. Nxg6 {[%emt 0:01:02]} Qxg6 {[%emt 0:00:02]} 37. Qc8+ {[%emt 0:00:13]} Kf7 {[%emt 0:00:13]} 38. Qd7+ {[%emt 0:00:26]} Be7 {[%emt 0:00:01]} 39. f5 {[%emt 0:00:19]} Qh6 {[%emt 0:02:07]} 40. Qxe6+ {[%emt 0:01:04]} Qxe6 {[%emt 0:00:25]} 41. fxe6+ {[%emt 0:30:20]} Ke8 {[%emt 0:30:28]} 42. Re5 {[%emt 0:00:31]} Bf6 {[%emt 0:00:13]} 43. Rxd5 {[%emt 0:00:20]} Ke7 {[%emt 0:00:01]} 44. Rd7+ {[%emt 0:00:48]} Kxe6 {[%emt 0:00:01]} 45. Rxb7 {[%emt 0:00:07]} Bxd4 {[%emt 0:00:10]} 46. Kxg3 {[%emt 0:00:09]} Kd6 {[%emt 0:00:19]} 47. Kf3 {[%emt 0:00:10]} Kc6 {[%emt 0:00:07]} 48. Rb3 {[%emt 0:00:06]} Bb6 {[%emt 0:00:00]} 49. Ke4 {[%emt 0:00:00]} a5 {[%emt 0:00:00]} 50. Kd3 {[%emt 0:00:00]} a4 {[%emt 0:00:00]} 51. Rxb6+ {[%emt 0:00:00]} Kxb6 {[%emt 0:00:00]} 52. Kc4 {[%emt 0:00:00]} a3 {[%emt 0:00:00]} 53. b3 {[%emt 0:00:00]} Ka5 {[%emt 0:00:00]} 54. Kc5 {[%emt 0:00:00]} 1-0

[Event "26th OIBM 2023"]
[Site "Gmund am Tegernsee"]
[Date "2023.11.03"]
[Round "7.20"]
[White "Ammon, Tobias"]
[Black "Kulon, Klaudia"]
[Result "1-0"]
[ECO "B22"]
[WhiteElo "2145"]
[BlackElo "2319"]
[Annotator "RC"]
[PlyCount "53"]
[EventDate "2023.10.04"]
[EventType "swiss"]
[EventCountry "GER"]
[SourceTitle "playchess.com"]
[Source "ChessBase"]
[SourceQuality "1"]
[TimeControl "40/5400+30:1800+30"]

1. e4 {[%emt 0:00:04]} c5 {[%emt 0:00:04]} 2. c3 {[%emt 0:00:09]} Nf6 {[%emt 0:00:23]} 3. e5 {[%emt 0:00:07]} Nd5 {[%emt 0:00:03]} 4. Nf3 {[%emt 0:00:07]} Nc6 {[%emt 0:00:10]} 5. d4 {[%emt 0:00:07]} cxd4 {[%emt 0:00:41]} 6. cxd4 {[%emt 0:00:11]} d6 {[%emt 0:00:27]} 7. Bc4 {[%emt 0:00:12]} Nb6 {[%emt 0:01:18]} 8. Bb5 {[%emt 0:00:11]} dxe5 {[%emt 0:07:25]} 9. Nxe5 {[%emt 0:00:11]} Bd7 {[%emt 0:00:19]} 10. Nxd7 {[%emt 0:00:06]} Qxd7 {[%emt 0:00:04]} 11. Nc3 {[%emt 0:01:10]} a6 {[%emt 0:01:01]} 12. Bxc6 {[%emt 0:00:28]} Qxc6 {[%emt 0:00:23]} 13. d5 {[%emt 0:03:07]} Qc7 {[%emt 0:10:21]} 14. O-O {[%emt 0:05:12]} Rd8 {[%emt 0:02:40]} 15. Qf3 {[%emt 0:04:58]} Qc4 {[%emt 0:07:20]} 16. Rd1 {[%emt 0:22:42]} e5 {[%emt 0:06:32]} 17. Bg5 {[%emt 0:05:21]} Rd7 {[%emt 0:06:17]} 18. Rac1 {[%emt 0:08:42]} Qb4 {[%emt 0:02:01]} 19. Ne4 {[%emt 0:14:02]} h6 {[%emt 0:12:17]} 20. Bf6 gxf6 {[%emt 0:05:07]} 21. Nxf6+ {[%emt 0:13:00]} Kd8 {[%emt 0:00:28]} 22. Nxd7 {[%emt 0:01:20]} Nxd7 {[%emt 0:00:07]} 23. d6 {[%emt 0:05:58]} f6 {[%emt 0:06:39]} 24. Qd5 {[%emt 0:01:45]} Rh7 {[%emt 0:05:39]} 25. Qe6 {[%emt 0:03:05]} b6 {[%emt 0:02:26]} 26. Rc6 {[%emt 0:01:13]} h5 {[%emt 0:01:47]} 27. Rdc1 {[%emt 0:00:58]} 1-0

[Event "26th OIBM 2023"]
[Site "Gmund am Tegernsee"]
[Date "2023.11.03"]
[Round "7.21"]
[White "Gallego Alcaraz, Andres Felipe"]
[Black "Lerchl, Clemens"]
[Result "1-0"]
[ECO "A57"]
[WhiteElo "2495"]
[BlackElo "1850"]
[Annotator "RC"]
[PlyCount "57"]
[EventDate "2023.10.04"]
[EventType "swiss"]
[EventCountry "GER"]
[SourceTitle "playchess.com"]
[Source "ChessBase"]
[SourceQuality "1"]
[TimeControl "40/5400+30:1800+30"]

1. d4 {[%emt 0:00:04]} Nf6 {[%emt 0:00:06]} 2. c4 {[%emt 0:00:06]} c5 {[%emt 0:00:08]} 3. d5 {[%emt 0:00:09]} b5 {[%emt 0:00:05]} 4. Qc2 {[%emt 0:00:38]} bxc4 {[%emt 0:00:46]} 5. e4 {[%emt 0:00:37]} d6 {[%emt 0:00:35]} 6. Bxc4 {[%emt 0:01:03]} g6 {[%emt 0:00:38]} 7. Nf3 {[%emt 0:00:07]} Bg7 {[%emt 0:00:17]} 8. O-O {[%emt 0:00:10]} O-O {[%emt 0:00:49]} 9. h3 {[%emt 0:00:56]} Nbd7 {[%emt 0:02:55]} 10. Bd2 {[%emt 0:06:05]} Nb6 {[%emt 0:04:02]} 11. Na3 {[%emt 0:02:48]} Rb8 {[%emt 0:11:21]} 12. Rfe1 {[%emt 0:05:44]} Ne8 {[%emt 0:11:04]} 13. Ba5 {[%emt 0:08:41]} Nc7 {[%emt 0:09:13]} 14. Rab1 {[%emt 0:03:02]} Ba6 {[%emt 0:05:30]} 15. b3 {[%emt 0:18:21]} Qc8 {[%emt 0:04:54]} 16. Nd2 {[%emt 0:13:46]} Qd7 {[%emt 0:17:08]} 17. Bc3 {[%emt 0:03:54]} Bxc3 {[%emt 0:03:29]} 18. Qxc3 {[%emt 0:00:05]} Nxc4 {[%emt 0:02:06]} 19. bxc4 {[%emt 0:04:14]} Qa4 {[%emt 0:03:22]} 20. e5 {[%emt 0:02:35]} Rxb1 {[%emt 0:05:36]} 21. Rxb1 {[%emt 0:01:25]} dxe5 {[%emt 0:01:47]} 22. Qe3 {[%emt 0:07:34]} Rc8 {[%emt 0:03:41]} 23. Rb3 {[%emt 0:02:26]} Qa5 {[%emt 0:01:28]} 24. h4 {[%emt 0:02:05]} h5 {[%emt 0:01:45]} 25. Nf3 {[%emt 0:01:06]} Ne8 {[%emt 0:01:25]} 26. Nxe5 {[%emt 0:00:24]} Nd6 {[%emt 0:00:41]} 27. Nc6 {[%emt 0:00:35]} Rxc6 {[%emt 0:01:51]} 28. dxc6 {[%emt 0:00:06]} Qc7 {[%emt 0:00:21]} 29. Qxc5 {[%emt 0:00:20]} 1-0

[Event "26th OIBM 2023"]
[Site "Gmund am Tegernsee"]
[Date "2023.11.03"]
[Round "7.22"]
[White "Meissner, Felix"]
[Black "Manukonda Arun"]
[Result "1-0"]
[ECO "B50"]
[WhiteElo "2382"]
[BlackElo "2143"]
[Annotator "RC"]
[PlyCount "65"]
[EventDate "2023.10.04"]
[EventType "swiss"]
[EventCountry "GER"]
[SourceTitle "playchess.com"]
[Source "ChessBase"]
[SourceQuality "1"]
[TimeControl "40/5400+30:1800+30"]

1. e4 {[%emt 0:00:03]} c5 {[%emt 0:01:10]} 2. Nf3 {[%emt 0:00:09]} d6 {[%emt 0:00:10]} 3. c3 {[%emt 0:00:28]} Nf6 {[%emt 0:00:11]} 4. h3 {[%emt 0:00:26]} Nc6 {[%emt 0:00:10]} 5. Bd3 {[%emt 0:00:22]} g6 {[%emt 0:00:04]} 6. O-O {[%emt 0:00:16]} Bg7 {[%emt 0:00:02]} 7. Bc2 {[%emt 0:00:16]} O-O {[%emt 0:04:15]} 8. d4 {[%emt 0:00:26]} cxd4 {[%emt 0:01:53]} 9. cxd4 {[%emt 0:00:06]} d5 {[%emt 0:07:25]} 10. e5 {[%emt 0:00:44]} Ne4 {[%emt 0:00:02]} 11. Re1 {[%emt 0:03:20]} Nb4 {[%emt 0:03:30]} 12. Bb3 {[%emt 0:03:03]} e6 {[%emt 0:17:43]} 13. a3 {[%emt 0:09:00]} Nc6 {[%emt 0:04:06]} 14. Bc2 {[%emt 0:00:19]} f6 {[%emt 0:00:39]} 15. exf6 {[%emt 0:00:47]} Bxf6 {[%emt 0:04:08]} 16. Bxe4 {[%emt 0:00:37]} dxe4 {[%emt 0:00:01]} 17. Rxe4 {[%emt 0:00:08]} a5 {[%emt 0:05:20]} 18. Nc3 {[%emt 0:01:35]} Ra6 {[%emt 0:04:22]} 19. Bh6 {[%emt 0:03:02]} Rf7 {[%emt 0:06:23]} 20. Ne5 {[%emt 0:01:06]} Nxe5 {[%emt 0:02:39]} 21. dxe5 {[%emt 0:00:06]} Be7 {[%emt 0:00:21]} 22. Rd4 {[%emt 0:02:52]} Qe8 {[%emt 0:05:23]} 23. Ne4 {[%emt 0:00:39]} Rf5 {[%emt 0:02:37]} 24. Nf6+ {[%emt 0:03:43]} Rxf6 {[%emt 0:00:47]} 25. exf6 {[%emt 0:00:05]} Bxf6 {[%emt 0:00:11]} 26. Rd2 {[%emt 0:01:06]} Rc6 {[%emt 0:06:13]} 27. Qf3 {[%emt 0:02:55]} e5 {[%emt 0:02:21]} 28. Rad1 {[%emt 0:00:45]} Bf5 {[%emt 0:02:31]} 29. Qb3+ {[%emt 0:00:23]} Re6 {[%emt 0:01:17]} 30. Qxb7 {[%emt 0:00:36]} Re7 {[%emt 0:01:15]} 31. Qd5+ {[%emt 0:01:02]} Be6 {[%emt 0:00:36]} 32. Qxa5 {[%emt 0:00:29]} Rd7 {[%emt 0:00:57]} 33. Qb5 {[%emt 0:02:38]} 1-0